[Event "Polish Youth 1st League 2022"]
[Site "Lublin"]
[Date "2022.06.25"]
[Round "1.23"]
[White "Czarnecka, Lidia"]
[Black "Kroliczek, Gabriela"]
[Result "1/2-1/2"]
[ECO "C10"]
[WhiteElo "1940"]
[BlackElo "1934"]
[Annotator "NA RC"]
[PlyCount "81"]
[EventDate "2022.06.24"]
[EventType "team-tourn"]
[EventCountry "POL"]
[SourceTitle "playchess.com"]
[Source "ChessBase"]
[SourceQuality "1"]
[TimeControl "40/5400+30:1800+30"]

1. e4 {[%emt 0:00:05]} e6 {[%emt 0:00:05]} 2. d4 {[%emt 0:00:42]} d5 {[%emt 0:00:04]} 3. Nc3 {[%emt 0:00:08]} Nc6 {[%emt 0:00:04]} 4. exd5 {[%emt 0:13:24]} exd5 {[%emt 0:01:11]} 5. Be2 {[%emt 0:00:30]} Nf6 {[%emt 0:00:38]} 6. Nf3 {[%emt 0:00:32]} Be7 {[%emt 0:01:31]} 7. O-O {[%emt 0:00:40]} O-O {[%emt 0:00:14]} 8. h3 {[%emt 0:04:23]} h6 {[%emt 0:00:06]} 9. Bf4 {[%emt 0:00:25]} Bf5 {[%emt 0:04:57]} 10. Ne5 {[%emt 0:09:29]} Nb8 {[%emt 0:09:29]} 11. Re1 {[%emt 0:03:19]} c6 {[%emt 0:12:25]} 12. Bd3 {[%emt 0:03:34]} Bxd3 {[%emt 0:02:50]} 13. Qxd3 {[%emt 0:00:15]} Re8 {[%emt 0:01:51]} 14. Ne2 {[%emt 0:10:34]} Nbd7 {[%emt 0:17:04]} 15. Ng3 {[%emt 0:03:00]} Bf8 {[%emt 0:06:23]} 16. Nf5 $11 {[%emt 0:13:56]} Nxe5 {[%emt 0:05:08]} 17. Bxe5 {[%emt 0:08:34]} Ne4 {[%emt 0:04:11]} 18. c3 {[%emt 0:12:41]} b5 {[%emt 0:06:26]} 19. Qf3 {[%emt 0:03:33]} Re6 {[%emt 0:03:51]} 20. Re2 {[%emt 0:01:32]} a5 21. Rc1 {[%emt 0:02:22]} Rg6 {[%emt 0:11:06]} 22. Ng3 {[%emt 0:00:57]} Nxg3 {[%emt 0:01:09]} 23. Bxg3 {[%emt 0:00:07]} Qg5 {[%emt 0:03:33]} 24. Rce1 {[%emt 0:00:13]} Rf6 {[%emt 0:01:31]} 25. Qd3 {[%emt 0:00:24]} Qf5 {[%emt 0:02:41]} 26. Qd2 {[%emt 0:01:04]} b4 {[%emt 0:01:37]} 27. Re5 {[%emt 0:01:25]} Qd7 {[%emt 0:00:06]} 28. Qe2 {[%emt 0:00:46]} a4 {[%emt 0:02:56]} 29. cxb4 {[%emt 0:01:40]} Bxb4 {[%emt 0:00:29]} 30. Rc1 {[%emt 0:02:22]} a3 {[%emt 0:00:55]} 31. bxa3 {[%emt 0:01:05]} Bxa3 {[%emt 0:00:11]} 32. Re1 {[%emt 0:00:56]} Bf8 {[%emt 0:00:54]} 33. Re8 {[%emt 0:00:36]} Rxe8 {[%emt 0:00:38]} 34. Qxe8 {[%emt 0:00:01]} Qa7 {[%emt 0:00:41]} 35. Kh2 {[%emt 0:01:48]} Qxa2 {[%emt 0:00:25]} 36. Qb8 {[%emt 0:00:14]} Qa3 {[%emt 0:00:28]} 37. Re8 {[%emt 0:00:08]} Re6 {[%emt 0:00:36]} 38. Rxe6 {[%emt 0:00:07]} fxe6 {[%emt 0:00:01]} 39. Qc8 {[%emt 0:00:14]} Qe7 {[%emt 0:01:02]} 40. Qxc6 {[%emt 0:00:00]} Qf7 {[%emt 0:00:00]} 41. Qc8 {[%emt 0:06:39]} 1/2-1/2

[Event "Polish Youth 1st League 2022"]
[Site "Lublin"]
[Date "2022.06.25"]
[Round "1.24"]
[White "Seemann, Pola"]
[Black "Slusarczyk, Anna"]
[Result "0-1"]
[ECO "B40"]
[WhiteElo "1777"]
[BlackElo "1544"]
[Annotator "NA RC"]
[PlyCount "102"]
[EventDate "2022.06.24"]
[EventType "team-tourn"]
[EventCountry "POL"]
[SourceTitle "playchess.com"]
[Source "ChessBase"]
[SourceQuality "1"]
[TimeControl "40/5400+30:1800+30"]

1. e4 c5 {[%emt 0:00:04]} 2. Nf3 {[%emt 0:00:07]} e6 {[%emt 0:00:06]} 3. g3 {[%emt 0:00:03]} Nc6 {[%emt 0:01:50]} 4. Bg2 {[%emt 0:00:06]} g6 {[%emt 0:02:30]} 5. d4 {[%emt 0:00:07]} cxd4 {[%emt 0:00:10]} 6. Nxd4 {[%emt 0:00:06]} Nf6 {[%emt 0:09:41]} 7. O-O {[%emt 0:04:36]} a6 {[%emt 0:08:24]} 8. Bg5 {[%emt 0:05:39]} h6 {[%emt 0:03:29]} 9. Be3 {[%emt 0:03:20]} Qc7 {[%emt 0:15:56]} 10. Nc3 {[%emt 0:08:12]} d6 {[%emt 0:02:54]} 11. Nxc6 {[%emt 0:03:50]} bxc6 {[%emt 0:00:23]} 12. f4 {[%emt 0:07:41]} Bg7 {[%emt 0:03:11]} 13. Bf3 {[%emt 0:08:46]} O-O {[%emt 0:06:15]} 14. Qd2 {[%emt 0:06:42]} Kh7 {[%emt 0:03:16]} 15. Rad1 {[%emt 0:03:40]} d5 {[%emt 0:00:30]} 16. Bc5 {[%emt 0:01:45]} Rd8 {[%emt 0:04:45]} 17. e5 {[%emt 0:04:23]} Nd7 {[%emt 0:02:43]} 18. Bd6 {[%emt 0:01:44]} Qa7+ {[%emt 0:00:15]} 19. Kh1 {[%emt 0:00:22]} Bf8 {[%emt 0:00:28]} 20. Bxf8 {[%emt 0:03:05]} Rxf8 {[%emt 0:00:48]} 21. g4 {[%emt 0:02:15]} Nb6 {[%emt 0:08:45]} 22. b3 {[%emt 0:04:18]} Bb7 {[%emt 0:02:05]} 23. Qg2 {[%emt 0:04:02]} d4 {[%emt 0:05:34]} 24. Ne4 {[%emt 0:05:20]} Nd5 {[%emt 0:08:11]} 25. g5 {[%emt 0:05:31]} h5 {[%emt 0:03:58]} 26. Qh3 {[%emt 0:00:54]} Kg7 {[%emt 0:00:56]} 27. Rde1 {[%emt 0:09:20]} Ne3 {[%emt 0:05:16]} 28. Rf2 {[%emt 0:00:27]} Rh8 {[%emt 0:00:18]} 29. Nd6 {[%emt 0:00:54]} Rad8 {[%emt 0:00:59]} 30. Rfe2 {[%emt 0:00:52]} Ba8 {[%emt 0:00:27]} 31. Nc4 {[%emt 0:04:01]} Nxc4 {[%emt 0:00:42]} 32. bxc4 {[%emt 0:00:01]} Qc5 {[%emt 0:01:01]} 33. f5 {[%emt 0:02:45]} gxf5 {[%emt 0:00:29]} 34. Qh4 {[%emt 0:00:34]} Kg6 {[%emt 0:00:24]} 35. Rd2 {[%emt 0:00:35]} Qxc4 {[%emt 0:00:19]} 36. Red1 {[%emt 0:00:37]} c5 {[%emt 0:00:08]} 37. Qf2 {[%emt 0:00:33]} Bxf3+ {[%emt 0:00:34]} 38. Qxf3 {[%emt 0:00:03]} Qd5 {[%emt 0:00:25]} 39. Kg2 {[%emt 0:00:34]} Qxe5 {[%emt 0:00:35]} 40. c3 {[%emt 0:00:00]} Rd6 {[%emt 0:00:00]} 41. Kg1 {[%emt 0:04:41]} Rhd8 {[%emt 0:01:32]} 42. Re2 {[%emt 0:01:12]} Qd5 {[%emt 0:03:57]} 43. Qf4 {[%emt 0:01:03]} d3 {[%emt 0:04:12]} 44. Re5 {[%emt 0:00:40]} Qxa2 {[%emt 0:00:17]} 45. Rf1 {[%emt 0:00:25]} Rd5 {[%emt 0:00:50]} 46. c4 {[%emt 0:00:32]} Rd4 {[%emt 0:00:34]} 47. Qf3 {[%emt 0:00:48]} Rg4+ {[%emt 0:00:23]} 48. Kh1 {[%emt 0:00:11]} Rxg5 {[%emt 0:00:57]} 49. Qc6 {[%emt 0:01:57]} Qxc4 {[%emt 0:01:50]} 50. Rfe1 {[%emt 0:00:31]} Kf6 {[%emt 0:01:03]} 51. Rxc5 {[%emt 0:00:59]} d2 {[%emt 0:00:20]} 0-1

[Event "Polish Youth 1st League 2022"]
[Site "Lublin"]
[Date "2022.06.25"]
[Round "1.25"]
[White "Panek, Bartosz"]
[Black "Wieczorek, Mikolaj"]
[Result "1-0"]
[ECO "B54"]
[WhiteElo "2022"]
[BlackElo "1942"]
[Annotator "NA RC"]
[PlyCount "123"]
[EventDate "2022.06.24"]
[EventType "team-tourn"]
[EventCountry "POL"]
[SourceTitle "playchess.com"]
[Source "ChessBase"]
[SourceQuality "1"]
[TimeControl "40/5400+30:1800+30"]

1. e4 {[%emt 0:00:05]} c5 {[%emt 0:00:05]} 2. Nf3 {[%emt 0:00:05]} d6 {[%emt 0:00:03]} 3. d4 {[%emt 0:00:09]} cxd4 {[%emt 0:00:08]} 4. Nxd4 {[%emt 0:00:05]} Nf6 {[%emt 0:00:03]} 5. f3 {[%emt 0:00:07]} e5 {[%emt 0:00:58]} 6. Nb3 {[%emt 0:00:05]} Be7 {[%emt 0:00:34]} 7. c4 {[%emt 0:00:10]} O-O {[%emt 0:03:26]} 8. Be3 {[%emt 0:00:52]} a5 {[%emt 0:04:36]} 9. Nc3 {[%emt 0:02:42]} a4 {[%emt 0:05:49]} 10. Nc1 {[%emt 0:00:10]} Qa5 {[%emt 0:01:08]} 11. Be2 {[%emt 0:07:15]} Be6 {[%emt 0:17:21]} 12. Qd2 {[%emt 0:11:30]} Rc8 {[%emt 0:05:43]} 13. Nd5 {[%emt 0:01:16]} Bxd5 {[%emt 0:06:46]} 14. cxd5 {[%emt 0:01:15]} Bd8 {[%emt 0:01:10]} 15. b4 {[%emt 0:25:18]} axb3 {[%emt 0:00:51]} 16. Nxb3 {[%emt 0:00:06]} Qa3 {[%emt 0:00:39]} 17. Kf2 {[%emt 0:00:08]} Na6 {[%emt 0:01:07]} 18. Bxa6 {[%emt 0:09:42]} bxa6 {[%emt 0:02:01]} 19. Rhc1 {[%emt 0:01:32]} a5 {[%emt 0:01:02]} 20. Rxc8 {[%emt 0:03:26]} Rxc8 {[%emt 0:00:05] [#]} 21. Rc1 $1 {[%emt 0:00:04]} Rxc1 {[%emt 0:01:32]} 22. Nxc1 {[%emt 0:00:07]} Nd7 {[%emt 0:04:49]} 23. Qc2 {[%emt 0:05:28]} Kf8 {[%emt 0:00:46]} 24. Qb3 {[%emt 0:07:36]} Qxb3 {[%emt 0:00:13]} 25. Nxb3 {[%emt 0:00:04]} f5 26. Nd2 {[%emt 0:01:04]} f4 {[%emt 0:12:33]} 27. Ba7 {[%emt 0:00:17]} Bb6+ {[%emt 0:01:48]} 28. Bxb6 {[%emt 0:00:08]} Nxb6 {[%emt 0:00:01]} 29. Ke2 {[%emt 0:00:08]} Ke7 {[%emt 0:02:02] [#]} 30. Kd3 $1 {[%emt 0:00:10]} g5 $16 {[%emt 0:00:23]} 31. Nc4 Na4 {[%emt 0:00:17]} 32. Nxa5 {[%emt 0:01:46]} h5 {[%emt 0:00:10]} 33. Kc2 {[%emt 0:04:56]} g4 {[%emt 0:00:13]} 34. Nb7 {[%emt 0:01:48]} g3 {[%emt 0:01:13]} 35. h3 {[%emt 0:02:15]} Kd7 {[%emt 0:00:37]} 36. Kd2 {[%emt 0:06:14]} Kc7 {[%emt 0:02:13]} 37. Na5 {[%emt 0:00:10]} Kb6 {[%emt 0:00:37]} 38. Nc6 {[%emt 0:00:07]} Nb2 {[%emt 0:00:36]} 39. Ke2 {[%emt 0:00:41]} Nc4 {[%emt 0:00:25]} 40. Ne7 {[%emt 0:00:00]} Kc5 {[%emt 0:00:00]} 41. Nf5 {[%emt 0:06:13]} Kb4 {[%emt 0:11:34]} 42. Ng7 {[%emt 0:02:58]} Ne3 {[%emt 0:00:30]} 43. Nf5 {[%emt 0:00:27]} Nc4 {[%emt 0:03:42]} 44. Kf1 {[%emt 0:01:10]} Kc3 45. a4 {[%emt 0:01:36]} Kb4 {[%emt 0:09:31]} 46. Ng7 {[%emt 0:00:06]} h4 {[%emt 0:06:04]} 47. Nf5 {[%emt 0:00:12]} Kxa4 48. Nxh4 {[%emt 0:00:13]} Kb5 {[%emt 0:00:41]} 49. Nf5 {[%emt 0:06:42]} Kc5 {[%emt 0:00:08]} 50. h4 {[%emt 0:06:23]} Nb6 {[%emt 0:00:08]} 51. Ng7 {[%emt 0:01:24]} Nd7 {[%emt 0:00:30]} 52. Ne8 {[%emt 0:00:13]} Nf8 {[%emt 0:00:31]} 53. h5 {[%emt 0:00:07]} Nh7 {[%emt 0:00:08]} 54. h6 {[%emt 0:00:06]} Kd4 {[%emt 0:00:21]} 55. Nxd6 {[%emt 0:00:09]} Ng5 {[%emt 0:00:20]} 56. Nb7 {[%emt 0:02:11]} Ke3 57. d6 {[%emt 0:00:30]} Nxf3 {[%emt 0:00:31]} 58. gxf3 {[%emt 0:01:17]} Kxf3 {[%emt 0:00:04]} 59. d7 {[%emt 0:00:08]} g2+ {[%emt 0:00:02]} 60. Kg1 {[%emt 0:00:07]} Ke2 {[%emt 0:00:17]} 61. d8=Q {[%emt 0:00:16]} f3 {[%emt 0:00:05]} 62. Qb6 {[%emt 0:00:34]} 1-0

[Event "Polish Youth 1st League 2022"]
[Site "Lublin"]
[Date "2022.06.25"]
[Round "1.26"]
[White "Bednarczyk, Mateusz"]
[Black "Kubik, Rafal"]
[Result "0-1"]
[ECO "B76"]
[WhiteElo "1701"]
[BlackElo "1827"]
[Annotator "NA RC"]
[PlyCount "110"]
[EventDate "2022.06.24"]
[EventType "team-tourn"]
[EventCountry "POL"]
[SourceTitle "playchess.com"]
[Source "ChessBase"]
[SourceQuality "1"]
[TimeControl "40/5400+30:1800+30"]

1. e4 {[%emt 0:00:05]} c5 {[%emt 0:00:07]} 2. Nf3 {[%emt 0:00:07]} d6 {[%emt 0:00:09]} 3. d4 {[%emt 0:00:07]} cxd4 {[%emt 0:00:07]} 4. Nxd4 {[%emt 0:00:06]} Nf6 {[%emt 0:00:04]} 5. Nc3 {[%emt 0:00:09]} g6 {[%emt 0:00:04]} 6. Be3 {[%emt 0:02:22]} Bg7 {[%emt 0:00:06]} 7. f3 {[%emt 0:00:03]} O-O {[%emt 0:00:08]} 8. Qd2 {[%emt 0:00:03]} Nc6 {[%emt 0:00:05]} 9. O-O-O {[%emt 0:02:36]} d5 {[%emt 0:00:11]} 10. exd5 {[%emt 0:02:59]} Nxd5 {[%emt 0:00:11]} 11. Nxd5 {[%emt 0:10:08]} Qxd5 {[%emt 0:03:09]} 12. Nb3 {[%emt 0:03:09]} Qe5 {[%emt 0:08:46]} 13. c3 {[%emt 0:03:40]} Qc7 {[%emt 0:11:29]} 14. g4 {[%emt 0:17:50]} Be6 {[%emt 0:10:45]} 15. Qc2 {[%emt 0:10:22]} Rac8 {[%emt 0:07:07]} 16. Bd3 {[%emt 0:03:22]} Qe5 {[%emt 0:07:03]} 17. Qd2 {[%emt 0:25:55]} Nb4 {[%emt 0:02:57]} 18. Kb1 {[%emt 0:01:00]} Nxa2 {[%emt 0:07:42]} 19. c4 {[%emt 0:08:05]} Rfd8 {[%emt 0:16:35]} 20. Bf4 {[%emt 0:06:31]} Rxd3 {[%emt 0:01:09]} 21. Bxe5 {[%emt 0:00:12]} Rxd2 {[%emt 0:00:09]} 22. Nxd2 {[%emt 0:00:36]} Bxe5 {[%emt 0:00:13]} 23. Kxa2 {[%emt 0:00:04]} Bxc4+ {[%emt 0:00:51]} 24. Nxc4 {[%emt 0:01:05]} Rxc4 {[%emt 0:00:02]} 25. Rd7 {[%emt 0:01:51]} Rb4 {[%emt 0:00:56]} 26. b3 {[%emt 0:00:08]} Bd6 {[%emt 0:00:35]} 27. h4 {[%emt 0:00:29]} h6 {[%emt 0:01:02]} 28. Rc1 {[%emt 0:00:41]} Kg7 {[%emt 0:01:51]} 29. Rc4 {[%emt 0:00:25]} Rb5 {[%emt 0:01:19]} 30. Rd8 {[%emt 0:00:42]} a5 {[%emt 0:01:41]} 31. Ra8 {[%emt 0:00:35]} b6 {[%emt 0:00:46]} 32. Ra6 {[%emt 0:00:18]} Bg3 {[%emt 0:01:39]} 33. Rc6 {[%emt 0:00:38]} Bf2 {[%emt 0:00:34]} 34. Kb2 {[%emt 0:00:27]} h5 {[%emt 0:01:20]} 35. gxh5 {[%emt 0:00:03]} Rxh5 36. Rc4 {[%emt 0:01:00]} Rf5 {[%emt 0:01:57]} 37. f4 {[%emt 0:00:36]} Rh5 {[%emt 0:00:52]} 38. Re4 {[%emt 0:00:30]} Bc5 39. Ra8 {[%emt 0:00:30]} Rxh4 {[%emt 0:00:58]} 40. Rc4 {[%emt 0:00:00]} Kf6 {[%emt 0:00:00]} 41. Kc2 {[%emt 0:05:06]} Kf5 {[%emt 0:04:05]} 42. Rxc5+ {[%emt 0:00:07]} bxc5 {[%emt 0:00:11]} 43. Rxa5 {[%emt 0:00:02]} Rxf4 {[%emt 0:02:40]} 44. Rxc5+ {[%emt 0:00:04]} e5 {[%emt 0:00:50]} 45. Kc3 {[%emt 0:00:13]} g5 {[%emt 0:00:44]} 46. b4 {[%emt 0:00:18]} g4 {[%emt 0:00:22]} 47. Rc7 {[%emt 0:01:00]} Ke6 {[%emt 0:00:54]} 48. b5 {[%emt 0:00:20]} g3 {[%emt 0:00:45]} 49. Rc8 {[%emt 0:01:05]} Rg4 {[%emt 0:00:30]} 50. b6 {[%emt 0:00:35]} g2 {[%emt 0:00:16]} 51. b7 {[%emt 0:01:37]} g1=Q {[%emt 0:00:18]} 52. b8=Q {[%emt 0:00:05]} Qc1+ {[%emt 0:00:24]} 53. Kb3 {[%emt 0:00:21]} Qb1+ {[%emt 0:00:31]} 54. Kc3 {[%emt 0:00:14]} Rg3+ {[%emt 0:00:27]} 55. Kc4 {[%emt 0:00:15]} Qc2+ {[%emt 0:00:09]} 0-1

[Event "Polish Youth 1st League 2022"]
[Site "Lublin"]
[Date "2022.06.25"]
[Round "1.27"]
[White "Karwot, Marek"]
[Black "Nagly, Wojciech"]
[Result "0-1"]
[ECO "C41"]
[WhiteElo "1454"]
[BlackElo "1464"]
[Annotator "NA RC"]
[PlyCount "116"]
[EventDate "2022.06.24"]
[EventType "team-tourn"]
[EventCountry "POL"]
[SourceTitle "playchess.com"]
[Source "ChessBase"]
[SourceQuality "1"]
[TimeControl "40/5400+30:1800+30"]

1. e4 {[%emt 0:00:03]} e5 {[%emt 0:00:12]} 2. Nf3 {[%emt 0:00:30]} d6 {[%emt 0:00:48]} 3. d4 {[%emt 0:00:51]} Nf6 {[%emt 0:00:10]} 4. dxe5 {[%emt 0:10:56]} Nxe4 {[%emt 0:00:26]} 5. exd6 {[%emt 0:09:12]} Bxd6 {[%emt 0:07:51]} 6. Be3 {[%emt 0:06:19]} O-O {[%emt 0:00:42]} 7. Nbd2 {[%emt 0:05:28]} Nxd2 {[%emt 0:03:30]} 8. Qxd2 {[%emt 0:01:19]} Nc6 {[%emt 0:00:32]} 9. O-O-O {[%emt 0:02:27]} Be6 {[%emt 0:07:45]} 10. a3 {[%emt 0:03:32]} Qe7 {[%emt 0:00:56]} 11. Qc3 {[%emt 0:03:08]} Bg4 {[%emt 0:29:24]} 12. Be2 {[%emt 0:11:04]} Ne5 {[%emt 0:05:41]} 13. Bd4 {[%emt 0:04:49]} Bxf3 {[%emt 0:12:48]} 14. Bxf3 {[%emt 0:03:00]} Nxf3 15. Qxf3 {[%emt 0:03:55]} Qe6 {[%emt 0:17:30]} 16. Kb1 {[%emt 0:02:35]} b5 {[%emt 0:01:31]} 17. Rhe1 {[%emt 0:06:49]} Qg6 18. Re4 {[%emt 0:05:12]} f6 {[%emt 0:05:46]} 19. h4 {[%emt 0:07:55]} a5 {[%emt 0:01:03]} 20. h5 {[%emt 0:01:25]} Qf7 {[%emt 0:00:34]} 21. Qb3 {[%emt 0:02:58]} Qxb3 {[%emt 0:00:11]} 22. cxb3 {[%emt 0:00:08]} Rfe8 {[%emt 0:00:09]} 23. Rde1 {[%emt 0:01:15]} Rxe4 {[%emt 0:00:43]} 24. Rxe4 {[%emt 0:00:22]} Kf7 {[%emt 0:00:28]} 25. a4 {[%emt 0:01:24]} Rb8 {[%emt 0:01:00]} 26. Bc3 {[%emt 0:01:17]} b4 {[%emt 0:00:11]} 27. Bd2 {[%emt 0:01:18]} Rd8 {[%emt 0:01:27]} 28. Kc2 {[%emt 0:01:22]} Be5 {[%emt 0:01:23]} 29. f3 {[%emt 0:01:33]} Rd5 {[%emt 0:00:47]} 30. Be3 {[%emt 0:01:12]} Bd6 {[%emt 0:00:28]} 31. g4 {[%emt 0:00:48]} f5 {[%emt 0:00:30]} 32. Rc4 {[%emt 0:01:00]} fxg4 {[%emt 0:00:43]} 33. fxg4 {[%emt 0:00:17]} Re5 {[%emt 0:01:05]} 34. Kd3 {[%emt 0:00:33]} Ke6 {[%emt 0:00:36]} 35. Re4 {[%emt 0:01:08]} Rxe4 {[%emt 0:00:15]} 36. Kxe4 {[%emt 0:00:05]} Be5 {[%emt 0:00:45]} 37. Bf4 {[%emt 0:00:44]} Bxf4 {[%emt 0:00:32]} 38. Kxf4 {[%emt 0:00:07]} Kf6 {[%emt 0:00:17]} 39. g5+ {[%emt 0:00:32]} Ke6 {[%emt 0:00:04]} 40. Ke4 {[%emt 0:00:00]} g6 {[%emt 0:00:00]} 41. hxg6 {[%emt 0:05:49]} hxg6 {[%emt 0:00:39]} 42. Kd4 {[%emt 0:00:39]} Kd6 {[%emt 0:03:01]} 43. Kc4 {[%emt 0:12:10]} c6 {[%emt 0:00:14]} 44. Kd4 {[%emt 0:00:51]} c5+ {[%emt 0:00:26]} 45. Kc4 {[%emt 0:03:03]} Kc6 {[%emt 0:00:03]} 46. Kd3 {[%emt 0:00:06]} Kd5 {[%emt 0:00:08]} 47. Kc2 {[%emt 0:07:37]} Ke4 {[%emt 0:08:38]} 48. Kd2 {[%emt 0:00:10]} Kf4 {[%emt 0:01:35]} 49. Kd3 {[%emt 0:00:08]} Kxg5 {[%emt 0:00:05]} 50. Kc4 {[%emt 0:00:13]} Kf4 {[%emt 0:00:17]} 51. Kb5 {[%emt 0:00:14]} g5 {[%emt 0:00:06]} 52. Kxa5 {[%emt 0:00:15]} g4 {[%emt 0:00:03]} 53. Kb6 {[%emt 0:00:49]} g3 {[%emt 0:00:04]} 54. a5 {[%emt 0:00:07]} g2 {[%emt 0:00:05]} 55. a6 {[%emt 0:00:13]} g1=Q {[%emt 0:00:08]} 56. Kb7 {[%emt 0:00:18]} Qg2+ {[%emt 0:01:08]} 57. Kb8 {[%emt 0:00:09]} Qxb2 {[%emt 0:01:03]} 58. a7 {[%emt 0:00:07]} Qxb3 {[%emt 0:00:16]} 0-1

[Event "Polish Youth 1st League 2022"]
[Site "Lublin"]
[Date "2022.06.25"]
[Round "1.28"]
[White "Gibala, Adam"]
[Black "Niesporek, Franciszek"]
[Result "1/2-1/2"]
[ECO "B50"]
[WhiteElo "1516"]
[BlackElo "1332"]
[Annotator "NA RC"]
[PlyCount "81"]
[EventDate "2022.06.24"]
[EventType "team-tourn"]
[EventCountry "POL"]
[SourceTitle "playchess.com"]
[Source "ChessBase"]
[SourceQuality "1"]
[TimeControl "40/5400+30:1800+30"]

1. e4 {[%emt 0:00:02]} c5 {[%emt 0:00:08]} 2. Nf3 {[%emt 0:00:05]} d6 {[%emt 0:00:06]} 3. c3 {[%emt 0:00:03]} Nf6 {[%emt 0:00:08]} 4. Be2 {[%emt 0:00:04]} g6 {[%emt 0:00:08]} 5. O-O {[%emt 0:00:25]} Bg7 {[%emt 0:00:07]} 6. Bb5+ {[%emt 0:00:05]} Nc6 {[%emt 0:00:21]} 7. Re1 {[%emt 0:01:06]} O-O {[%emt 0:02:10]} 8. d4 {[%emt 0:00:46]} Qc7 {[%emt 0:10:49]} 9. Bxc6 {[%emt 0:01:38]} Qxc6 {[%emt 0:00:44]} 10. d5 {[%emt 0:00:08]} Qc7 {[%emt 0:00:37]} 11. c4 e6 {[%emt 0:02:21]} 12. Nc3 {[%emt 0:03:11]} a6 {[%emt 0:01:24]} 13. Bg5 {[%emt 0:00:50]} h6 {[%emt 0:05:11]} 14. Bxf6 {[%emt 0:04:13]} Bxf6 {[%emt 0:00:27]} 15. e5 dxe5 {[%emt 0:06:31]} 16. d6 {[%emt 0:00:58]} Qc6 {[%emt 0:00:25]} 17. Nxe5 {[%emt 0:00:34]} Bxe5 {[%emt 0:01:04]} 18. Rxe5 Rd8 {[%emt 0:02:44]} 19. Qg4 {[%emt 0:02:16]} Qxd6 {[%emt 0:04:01]} 20. Rae1 {[%emt 0:00:21]} b6 {[%emt 0:07:26]} 21. Qf3 {[%emt 0:05:17]} Ra7 {[%emt 0:09:59]} 22. Qf6 {[%emt 0:08:40]} Qe7 {[%emt 0:03:48]} 23. Qf4 {[%emt 0:01:35]} Rd4 {[%emt 0:01:18]} 24. Qxh6 {[%emt 0:00:41]} Qh4 {[%emt 0:01:45]} 25. Qe3 {[%emt 0:01:34]} Kg7 {[%emt 0:08:19]} 26. Re4 {[%emt 0:01:59]} Rxe4 {[%emt 0:01:26]} 27. Nxe4 {[%emt 0:00:09]} Rd7 {[%emt 0:03:25]} 28. Nd6 {[%emt 0:07:16]} Qd8 {[%emt 0:02:26]} 29. Rd1 {[%emt 0:02:55]} Bb7 {[%emt 0:05:24]} 30. h3 {[%emt 0:02:25]} Kg8 {[%emt 0:01:25]} 31. Qe5 {[%emt 0:01:11]} Qc7 {[%emt 0:01:06]} 32. Kh2 {[%emt 0:01:54]} Qc6 {[%emt 0:01:40]} 33. f3 {[%emt 0:01:18]} Qc7 {[%emt 0:00:40]} 34. h4 {[%emt 0:02:01]} Qd8 {[%emt 0:01:19]} 35. Kh3 {[%emt 0:04:06]} Qe7 {[%emt 0:01:31]} 36. h5 {[%emt 0:06:41]} gxh5 {[%emt 0:03:10]} 37. Qg3+ {[%emt 0:10:05]} Kh7 {[%emt 0:01:35]} 38. Qe5 {[%emt 0:00:15]} Kg8 {[%emt 0:01:14]} 39. Qg3+ {[%emt 0:01:03]} Kh7 {[%emt 0:01:02]} 40. Qe5 {[%emt 0:00:00]} Kg8 {[%emt 0:00:00]} 41. Qg3+ {[%emt 0:05:11]} 1/2-1/2